fUST/lending_fUST_20260103
["ID","MTS","AMOUNT","RATE_DAILY","PERIOD"]
[400352118,1767415833707,500.0,0.00013498,2]
[400352119,1767415833749,500.0,0.00013498,2]
[400352120,1767415833781,500.0,0.00013498,2]
[400352121,1767415833827,500.0,0.00013498,2]
[400352122,1767415833863,500.0,0.00013498,2]
[400352123,1767415833903,265.62705358,0.00013498,2]
[400352124,1767415833966,500.0,0.00013498,2]
[400352125,1767415834021,500.0,0.00013498,2]
[400352126,1767415834375,500.0,0.00013498,2]
[400352135,1767415837746,-8858.38237819,0.00013499,2]
[400352136,1767415837757,-10521.17056281,0.00013499,2]
[400352137,1767415837770,-1964.87957539,0.00013499,2]
[400352138,1767415837782,-2084.69907782,0.00013499,2]
[400352139,1767415837793,-5570.6193584,0.00013499,2]
[400352140,1767415837804,-1618.48555285,0.00013499,2]
[400352141,1767415837815,-418.49770858,0.00013499,2]
[400352150,1767415839991,-5018.80892051,0.00013499,2]
[400352151,1767415840003,-60172.45155294,0.00013499,2]
[400352152,1767415840013,-571.66631772,0.00013698,2]
[400352153,1767415840023,-180.94737759,0.00013699,2]
[400352154,1767415840034,-1219.706777,0.00013699,2]
[400352155,1767415840044,-500.0,0.00013699,2]
[400352156,1767415840053,-3401.44,0.00013777,2]
[400352157,1767415840063,-1000.0,0.00013821,2]
[400352158,1767415840072,-325.76032323,0.00014053,2]
[400352159,1767415840082,-1000.0,0.00014247,2]
[400352160,1767415840091,-1500.0,0.00014368,2]
[400352161,1767415840101,-4081.73,0.00014695,2]
[400352162,1767415840111,-500.0,0.00014794,2]
[400352163,1767415840120,-1500.0,0.00014795,2]
[400352164,1767415840130,-197.294,0.00014795,2]
[400352165,1767415840140,-1197.06,0.000148,2]
[400352166,1767415840149,-291.5666153,0.00014849,30]
[400352167,1767415840159,-1558.74209918,0.00014916,2]
[400352168,1767415840284,-291.5666153,0.00014932,30]
[400352169,1767415840294,-291.5666153,0.00014986,30]
[400352170,1767415840303,-1000.0,0.00015,2]
[400352171,1767415840313,-291.5666153,0.00015068,30]
[400352172,1767415840323,-800.0,0.00015068,2]
[400352173,1767415840333,-1197.06,0.000151,2]
[400352174,1767415840343,-291.5666153,0.00015123,30]
[400352175,1767415840353,-291.5666153,0.00015205,30]
[400352176,1767415840363,-291.5666153,0.00015288,30]
[400352177,1767415840372,-600.0,0.00015297,2]
[400352178,1767415840382,-291.5666153,0.00015342,30]
[400352179,1767415840392,-2000.0,0.00015342,2]
[400352180,1767415840401,-1197.06,0.000154,2]
[400352181,1767415840411,-291.5666153,0.00015425,30]
[400352182,1767415840421,-291.5666153,0.00015479,30]
[400352183,1767415840430,-291.5666153,0.00015562,30]
[400352184,1767415840440,-4762.02,0.00015614,2]
[400352185,1767415840449,-291.5666153,0.00015644,30]
[400352186,1767415840459,-1197.06,0.000157,2]
[400352187,1767415840469,-1992.10289204,0.00015718,2]
[400352188,1767415840478,-340.90852866,0.00015735,2]
[400352189,1767415840488,-26992.70188829,0.0001589,2]
[400352192,1767415843859,-3539.64707497,0.00015731,2]
[400352200,1767415845830,-1460.35292503,0.00015731,2]
[400352201,1767415845841,-36302.77144327,0.0001589,2]
[400352202,1767415857846,-1456.85193761,0.0001589,2]
[400352203,1767415857899,500.0,0.00013498,2]
[400352204,1767415857932,296.64594971,0.00013498,2]
[400352205,1767415857986,203.35405029,0.00013498,2]
[400352206,1767415860629,-437.86,0.00010153,2]
[400352207,1767415860661,-875.72,0.00011076,2]
[400352208,1767415860693,-430.38384398,0.00013498,2]
[400352209,1767415860727,-500.0,0.00013498,2]
[400352210,1767415860759,-500.0,0.00013498,2]
[400352211,1767415860791,-500.0,0.00013498,2]
[400352212,1767415860825,-347.94225026,0.00013498,2]
[400352213,1767415861005,-1313.58,0.00011999,2]
[400352214,1767415861016,-502.61781152,0.0001589,2]
[400352215,1767415863720,-1751.43,0.00012922,2]
[400352216,1767415863752,-300.0,0.00013497,2]
[400352217,1767415863781,-300.0,0.00013497,2]
[400352218,1767415863811,-2189.29,0.00013845,2]
[400352219,1767415863902,-918.57,0.00014768,2]
[400352220,1767415866841,-1708.58,0.00014768,2]
[400352221,1767415866873,-420.0,0.00014794,2]
[400352222,1767415866905,-2677.84,0.00015691,2]
[400352223,1767415867099,-387.17,0.00015691,2]
[400352224,1767415870124,-451.08042552,0.00013498,2]
[400352225,1767415870155,-4097.84914896,0.0001462,2]
[400352226,1767415870197,-902.15085104,0.0001462,2]
[400352227,1767415874079,10000.01,0.00013399,2]
[400352228,1767415874109,10000.01,0.00013399,2]
[400352229,1767415874137,10000.01,0.00013399,2]
[400352230,1767415874390,-10000.01,0.00013399,2]
[400352231,1767415876457,-10000.01,0.00013399,2]
[400352232,1767415876527,-10000.01,0.00013399,2]
[400352233,1767415876647,-10000.01,0.00013399,2]
[400352236,1767415885625,-10000.01,0.00013399,2]
[400352237,1767415885749,-10000.01,0.00013399,2]
[400352238,1767415885857,-10000.01,0.00013399,2]
[400352239,1767415885969,-10000.01,0.00013399,2]
[400352242,1767415898514,-5000.0,0.00013265,2]
[400352245,1767415900390,0.01,0.00013265,2]
[400352246,1767415900415,1041.65666667,0.00013265,2]
[400352250,1767415937414,474.79,0.00010353,2]
[400352251,1767416016240,468.74,0.00010371,2]
[400352252,1767416034938,-544.06,0.00011314,2]
[400352253,1767416038200,-326.65483128,0.00011314,2]
[400352254,1767416095935,451.7,0.00010247,2]
[400352257,1767416104795,-187.23850627,0.00011178,2]
[400352260,1767416109027,-153.95222773,0.00011178,2]
[400352261,1767416112815,-353.95222773,0.00011178,2]
[400352262,1767416116937,-393.89572035,0.00011066,2]
[400352263,1767416119557,-203.56335791,0.00011066,2]
[400352264,1767416120445,-4402.54092174,0.00011066,2]
[400352265,1767416139877,-270.99017907,0.00011066,2]
[400352266,1767416144423,-302.61508409,0.00011066,2]
[400352267,1767416149070,-414.00886497,0.00011066,2]
[400352268,1767416150673,-312.86163821,0.00011066,2]
[400352269,1767416157408,-187.13836179,0.00011066,2]
[400352270,1767416160668,-271.0,0.00011066,2]
[400352271,1767416164858,-169.32352975,0.00011066,2]
[400352272,1767416166429,-183.5603008,0.00011066,2]
[400352273,1767416169024,-205.14083363,0.00011066,2]
[400352274,1767416173121,-293.98603582,0.00011066,2]
[400352275,1767416174724,-303.97555261,0.00011066,2]
[400352276,1767416176235,-437.1,0.00010257,2]
[400352277,1767416176262,-66.01240054,0.00011066,2]
[400352278,1767416180829,-524.90730441,0.00010154,2]
[400352279,1767416182418,-155.20132184,0.00010154,2]
[400352280,1767416183908,-259.34177295,0.00010154,2]
[400352281,1767416184176,-200.48755087,0.00011066,2]
[400352282,1767416193244,-237.19955018,0.00011066,2]
[400352283,1767416196846,-270.0328476,0.00011066,2]
[400352284,1767416201515,-436.9597357,0.00010955,2]
[400352285,1767416204425,-209.85821075,0.00010955,2]
[400352286,1767416206698,-93.49400427,0.00010955,2]
[400352287,1767416206734,-103.89091164,0.00011066,2]
[400352288,1767416208838,-165.46191991,0.00011066,2]
[400352289,1767416215190,-260.55318025,0.00011066,2]
[400352290,1767416220402,-177.23751405,0.00011066,2]
[400352291,1767416222000,-223.41335437,0.00011066,2]
[400352292,1767416223563,-204.86794627,0.00010955,2]
[400352293,1767416228556,-389.26648569,0.00010955,2]
[400352294,1767416233865,-376.74613756,0.00010955,2]
[400352295,1767416237118,-6.16351605,0.00010955,2]
[400352296,1767416237143,-381.11038985,0.00011066,2]
[400352297,1767416237166,-117.6570842,0.00011189,2]
[400352298,1767416238685,-374.93897584,0.00011189,2]
[400352299,1767416240876,-222.83310953,0.00011189,2]
[400352300,1767416259882,-293.32144556,0.00010316,2]
[400352301,1767416261452,-129.10855444,0.00010316,2]
[400352302,1767416261476,-59.74243253,0.00010966,2]
[400352303,1767416264877,-200.12659503,0.00010966,2]
[400352305,1767416269272,-284.60954744,0.00010966,2]
[400352306,1767416272023,-489.98140847,0.00010966,2]
[400352307,1767416279682,-227.09273059,0.00010966,2]
[400352308,1767416280897,-3738.44728594,0.00010966,2]
[400352309,1767416281218,-195.0,0.00011077,2]
[400352310,1767416284597,-296.40222121,0.00011077,2]
[400352311,1767416286654,-153.07,0.00011077,2]
[400352312,1767416288264,-329.34397514,0.00011077,2]
[400352314,1767416293915,-0.70202658,0.00011077,2]
[400352315,1767416293941,-384.45180535,0.00011254,2]
[400352316,1767416297278,-460.40819465,0.00011254,2]
[400352317,1767416297311,-234.165213,0.00011589,2]
[400352318,1767416297344,-1000.0,0.00012,2]
[400352319,1767416297376,-1267.3,0.00012192,2]
[400352320,1767416297408,-1041.66666667,0.00012246,2]
[400352321,1767416297440,-300.0,0.00012999,2]
[400352322,1767416297473,-443.92985136,0.00013,2]
[400352323,1767416305469,-598.66175607,0.00011141,2]
[400352324,1767416307595,-4401.33824393,0.00011141,2]
[400352325,1767416307625,-505.07014864,0.00013,2]
[400352326,1767416333333,454.5,0.00010322,2]
[400352327,1767416333747,908.99,0.0001126,2]
[400352328,1767416334156,1363.49,0.00012199,2]
[400352329,1767416339556,169.3719332,6.132e-05,2]
[400352334,1767416413181,419.79,0.00010976,2]
[400352335,1767416413578,839.58,0.00011973,2]
[400352336,1767416492812,403.76,0.00010336,2]
[400352338,1767416493489,807.52,0.00011275,2]
[400352339,1767416493619,1211.28,0.00012215,2]
[400352342,1767416515204,1368.67534158,0.0001263,2]
[400352344,1767416523591,2053.05272522,0.0001263,2]
[400352345,1767416523618,2946.94727478,0.0001263,2]
[400352346,1767416546434,5000.0,0.0001263,2]
[400352347,1767416569645,2053.06272522,0.0001263,2]
[400352348,1767416569670,2946.93727478,0.0001263,2]
[400352349,1767416572289,372.93,0.00010358,2]
[400352350,1767416572678,745.85,0.000113,2]
[400352351,1767416573085,1118.78,0.00012241,2]
[400352352,1767416592876,4815.51272522,0.0001263,2]
[400352353,1767416592901,184.48727478,0.0001263,2]
[400352359,1767416616639,5000.0,0.0001263,2]
[400352360,1767416639713,4815.52272522,0.0001263,2]
[400352361,1767416639739,184.47727478,0.0001263,2]
[400352362,1767416650959,387.33,0.00010389,2]
[400352363,1767416651351,774.66,0.00011334,2]
[400352364,1767416651809,1161.99,0.00012278,2]
[400352365,1767416662855,5000.0,0.0001263,2]
[400352366,1767416686445,2491.55272522,0.0001263,2]
[400352367,1767416686470,2508.44727478,0.0001263,2]
[400352373,1767416710295,5000.0,0.0001263,2]
[400352376,1767416730750,357.75,0.00010365,2]
[400352377,1767416731157,715.51,0.00011307,2]
[400352378,1767416731564,1073.26,0.0001225,2]
[400352379,1767416734347,345.04272522,0.0001263,2]
[400352380,1767416734372,4654.95727478,0.0001263,2]
[400352390,1767416757380,5000.0,0.0001263,2]
[400352393,1767416780716,345.05272522,0.0001263,2]
[400352394,1767416780741,4654.94727478,0.0001263,2]
[400352396,1767416804147,5000.0,0.0001263,2]
[400352397,1767416810796,345.06272522,0.00010321,2]
[400352398,1767416810820,27.30727478,0.00010321,2]
[400352399,1767416811133,744.74,0.0001126,2]
[400352400,1767416811486,1117.12,0.00012198,2]
[400352413,1767416828038,5000.0,0.0001263,2]
[400352444,1767416851431,3110.84272522,0.0001263,2]
[400352445,1767416851458,1889.15727478,0.0001263,2]
[400352447,1767416874457,5000.0,0.0001263,2]
[400352463,1767416890688,343.94,0.00010343,2]
[400352464,1767416891109,687.87,0.00011284,2]
[400352465,1767416891522,1031.81,0.00012224,2]
[400352467,1767416897330,1047.23272522,0.0001263,2]
[400352469,1767416901115,-3952.76727478,0.0001263,2]
[400352473,1767416920909,2094.47545044,0.0001263,2]
[400352474,1767416920935,2905.52454956,0.0001263,2]
[400352479,1767416943801,5000.0,0.0001263,2]
[400352481,1767416967674,2094.48545044,0.0001263,2]
[400352482,1767416967699,2905.51454956,0.0001263,2]
[400352483,1767416968775,317.67,0.00010255,2]
[400352484,1767416969203,635.34,0.00011188,2]
[400352485,1767416969596,953.02,0.0001212,2]
[400352486,1767416990924,5000.0,0.0001263,2]
[400352489,1767417013931,188.46545044,0.0001263,2]
[400352490,1767417013957,4811.53454956,0.0001263,2]
[400352501,1767417031816,-1041.66666667,0.00012866,2]
[400352502,1767417031827,-236.93869554,0.00012868,2]
[400352503,1767417031837,-1270.69,0.00013052,2]
[400352504,1767417031847,-3003.99779435,0.00013063,2]
[400352505,1767417031860,-300.0,0.00013081,2]
[400352506,1767417031871,-578.0,0.00013081,2]
[400352507,1767417031881,-228.61444245,0.00013082,2]
[400352508,1767417031893,-300.0,0.00013082,2]
[400352509,1767417031903,-300.0,0.00013082,2]
[400352510,1767417031912,-300.0,0.00013082,2]
[400352511,1767417031922,-66531.98856457,0.00013083,2]
[400352512,1767417031931,-1200.0,0.00013163,2]
[400352513,1767417031941,-50000.0,0.00013163,2]
[400352514,1767417031951,-491.33954028,0.00013181,2]
[400352515,1767417031960,-196.18078373,0.00013181,2]
[400352516,1767417031970,-500.0,0.00013273,2]
[400352517,1767417031980,-500.0,0.00013273,2]
[400352518,1767417031989,-500.0,0.00013273,2]
[400352519,1767417031999,-150.05,0.0001332,2]
[400352520,1767417032009,-207.42573203,0.00013399,2]
[400352521,1767417032019,-628.0,0.00013527,2]
[400352522,1767417032028,-2145.0,0.00013527,2]
[400352523,1767417032038,-1365.0,0.00013527,2]
[400352524,1767417032047,-10000.0,0.0001357,2]
[400352525,1767417032057,-250.0,0.00013572,2]
[400352526,1767417032067,-250.0,0.00013572,2]
[400352527,1767417032076,-250.0,0.00013572,2]
[400352528,1767417032086,-250.0,0.00013572,2]
[400352529,1767417032095,-250.0,0.00013572,2]
[400352530,1767417032106,-250.0,0.00013572,2]
[400352531,1767417032115,-250.0,0.00013572,2]
[400352532,1767417032126,-250.0,0.00013572,2]
[400352533,1767417032136,-250.0,0.00013572,2]
[400352534,1767417032146,-250.0,0.00013572,2]
[400352535,1767417032157,-250.0,0.00013572,2]
[400352536,1767417032167,-21074.98776485,0.00013572,2]
[400352537,1767417032177,-232.942,0.00013593,2]
[400352538,1767417032187,-1101.3,0.000136,2]
[400352539,1767417032197,-300.0,0.00013673,2]
[400352540,1767417032207,-1000.0,0.00013699,2]
[400352541,1767417032217,-500.0,0.00013699,2]
[400352542,1767417032227,-500.0,0.00013699,2]
[400352543,1767417032237,-196.43737763,0.00013699,2]
[400352544,1767417032277,-303.56262237,0.00013699,2]
[400352545,1767417032287,-100.48737763,0.00013699,2]
[400352552,1767417037868,-1140.62200724,0.0001303,2]
[400352553,1767417037923,-781.9588877,0.0001303,2]
[400352554,1767417037933,-395.4449089,0.00013162,2]
[400352555,1767417037944,-104.5550911,0.00013162,2]
[400352556,1767417037954,-392.68677053,0.00013162,2]
[400352557,1767417037963,-298.64332112,0.00013162,2]
[400352558,1767417037973,-500.0,0.00013162,2]
[400352559,1767417037983,-500.0,0.00013162,2]
[400352560,1767417037992,-500.0,0.00013162,2]
[400352561,1767417038002,-500.0,0.00013162,2]
[400352562,1767417038011,-500.0,0.00013162,2]
[400352563,1767417038021,-500.0,0.00013162,2]
[400352564,1767417038030,-500.0,0.00013162,2]
[400352565,1767417038039,-500.0,0.00013162,2]
[400352566,1767417038048,-500.0,0.00013162,2]
[400352567,1767417038058,-58.99162761,0.00013699,2]
[400352568,1767417038068,-500.0,0.00013699,2]
[400352569,1767417038077,-1000.0,0.00013821,2]
[400352570,1767417038089,-1000.0,0.00013821,2]
[400352571,1767417038099,-1000.0,0.00013821,2]
[400352572,1767417038110,-1101.3,0.000139,2]
[400352573,1767417038120,-1588.36,0.00013985,2]
[400352574,1767417038129,-1101.3,0.000142,2]
[400352575,1767417038139,-600.0,0.00014221,2]
[400352576,1767417038269,-309.91150442,0.00014247,2]
[400352577,1767417038279,-1000.0,0.00014247,2]
[400352578,1767417038289,-1000.0,0.00014247,2]
[400352579,1767417038299,-1000.0,0.00014247,2]
[400352580,1767417038309,-151.0,0.00014247,2]
[400352581,1767417038320,-300.0,0.00014344,2]
[400352582,1767417038329,-420.0,0.00014345,2]
[400352583,1767417038339,-420.0,0.00014345,2]
[400352584,1767417038348,-420.0,0.00014345,2]
[400352585,1767417038358,-1500.0,0.00014368,2]
[400352586,1767417038368,-1500.0,0.00014368,2]
[400352587,1767417038378,-1500.0,0.00014368,2]
[400352588,1767417038388,-1101.3,0.000145,2]
[400352589,1767417038398,-151.37,0.00014507,2]
[400352590,1767417038410,-151.0,0.00014736,2]
[400352591,1767417038421,-100000.0,0.00014736,2]
[400352592,1767417038432,-900.0,0.00014768,2]
[400352593,1767417038441,-500.0,0.00014794,2]
[400352594,1767417038451,-180.223,0.00014794,2]
[400352595,1767417038460,-1500.0,0.00014795,2]
[400352596,1767417038470,-1500.0,0.00014795,2]
[400352597,1767417038479,-1500.0,0.00014795,2]
[400352598,1767417038489,-1101.3,0.000148,2]
[400352599,1767417038499,-199894.83356921,0.00014816,2]
[400352600,1767417038700,-905.78757059,0.00014816,2]
[400352698,1767417040768,-3e-08,0.00014816,2]
[400352745,1767417045903,257.03,0.00010222,2]
[400352746,1767417046559,514.05,0.00011151,2]
[400352747,1767417046713,771.08,0.00012081,2]
[400352765,1767417124737,237.4,0.00010169,2]
[400352766,1767417125151,474.8,0.00011093,2]
[400352769,1767417125546,712.2,0.00012017,2]
[400352812,1767417190815,-481.10556959,0.00012942,2]
[400352813,1767417202754,213.15,0.00010139,2]
[400352814,1767417203170,426.29,0.00011061,2]
[400352815,1767417203727,639.44,0.00011982,2]
[400352817,1767417281644,196.87,0.00010392,2]
[400352818,1767417282046,393.74,0.00011337,2]
[400352819,1767417282438,590.61,0.00012281,2]
[400352821,1767417362873,181.84,0.00010406,2]
[400352822,1767417363273,363.67,0.00011352,2]
[400352823,1767417363716,545.51,0.00012298,2]
[400352824,1767417442552,167.95,0.00010407,2]
[400352825,1767417442975,335.9,0.00011353,2]
[400352826,1767417443389,503.85,0.00012299,2]
[400352828,1767417521912,155.13,0.00010399,2]
[400352829,1767417522302,310.25,0.00011344,2]
[400352830,1767417522717,465.38,0.00012289,2]
[400352833,1767417600824,286.56,0.0001134,2]
[400352834,1767417601230,429.84,0.00012285,2]
[400352835,1767417679176,268.32,0.00011345,2]
[400352836,1767417679674,402.48,0.00012291,2]
[400352837,1767417736383,693.3115783,0.00012121,2]
[400352838,1767417757834,251.25,0.00011446,2]
[400352839,1767417758241,376.87,0.000124,2]
[400352840,1767417791714,2653.6792983,0.0001209,2]
[400352841,1767417836562,235.26,0.00011452,2]
[400352842,1767417836974,352.89,0.00012407,2]
[400352858,1767417914112,220.29,0.0001144,2]
[400352859,1767417914476,330.43,0.00012394,2]
[400352865,1767417991907,206.27,0.00011434,2]
[400352866,1767417992357,309.4,0.00012387,2]
[400352885,1767418069914,193.14,0.00011437,2]
[400352886,1767418070349,289.72,0.00012391,2]
[400352892,1767418148125,180.85,0.00011633,2]
[400352893,1767418148551,271.28,0.00012603,2]
[400352899,1767418194062,9065.02,0.00012447,2]
[400352900,1767418194088,1641.8837085,0.00012447,2]
[400352906,1767418225948,169.34,0.00011636,2]
[400352907,1767418226348,254.02,0.00012605,2]
[400352927,1767418232614,-534.54761844,0.00012983,2]
[400352928,1767418232627,-822.85091155,0.00012983,2]
[400352929,1767418232639,-818.909424,0.00012983,2]
[400352930,1767418235101,-2176.30795399,0.00012983,2]
[400352931,1767418235541,-4352.61590798,0.00012983,2]
[400352932,1767418235681,-1294.77818404,0.00012983,2]
[400352933,1767418235713,-1041.66666667,0.00013038,2]
[400352934,1767418235747,-239.060991,0.00013041,2]
[400352935,1767418235778,-200.0,0.0001306,2]
[400352951,1767418238084,-2328.5769163,0.00013082,2]
[400352954,1767418239238,-2618.81437184,0.00013082,2]
[400352955,1767418239359,-4762.38125632,0.00013082,2]
[400353126,1767418245552,-2628.49807003,0.00013244,2]
[400353127,1767418245583,-500.0,0.00013273,2]
[400353128,1767418245613,-500.0,0.00013273,2]
[400353129,1767418245643,-500.0,0.00013273,2]
[400353130,1767418245674,-271.45500671,0.00013461,2]
[400353133,1767418245704,-389.22013729,0.00013461,2]
[400353135,1767418245735,-82.97357194,0.00013575,2]
[400353138,1767418245863,-255.71642806,0.00013575,2]
[400353139,1767418245893,-991.17,0.000136,2]
[400353140,1767418245922,-300.0,0.00013673,2]
[400353141,1767418245957,-1158.721438,0.00013699,2]
[400353142,1767418245985,-500.0,0.00013699,2]
[400353143,1767418246015,-500.0,0.00013699,2]
[400353144,1767418246044,-630.228,0.00013811,2]
[400353145,1767418251650,-1422.827,0.00013811,2]
[400353146,1767418251691,-2176.266,0.00013811,2]
[400353147,1767418251726,-416.0,0.00013811,2]
[400353148,1767418251759,-178.0,0.00013811,2]
[400353149,1767418251789,-613.824,0.00013821,2]
[400353150,1767418251929,-386.176,0.00013821,2]
[400353151,1767418251960,-1000.0,0.00013821,2]
[400353152,1767418251991,-1000.0,0.00013821,2]
[400353153,1767418252022,-991.17,0.000139,2]
[400353154,1767418252052,-1245.318,0.00013985,2]
[400353155,1767418258242,-754.682,0.00013985,2]
[400353156,1767418258279,-2000.0,0.00013985,2]
[400353157,1767418258313,-2000.0,0.00013985,2]
[400353158,1767418258346,-15.646,0.00013985,2]
[400353159,1767418265019,-459.354,0.00013985,2]
[400353160,1767418265082,-300.0,0.00014,2]
[400353161,1767418265115,-737.36429423,0.00014221,2]
[400353162,1767418265147,-1000.0,0.00014247,2]
[400353163,1767418265177,-1000.0,0.00014247,2]
[400353164,1767418265208,-300.0,0.00014366,2]
[400353165,1767418265240,-500.0,0.00014367,2]
[400353166,1767418265278,-500.0,0.00014367,2]
[400353167,1767418265398,-500.0,0.00014367,2]
[400353168,1767418265429,-1500.0,0.00014368,2]
[400353169,1767418265461,-1500.0,0.00014368,2]
[400353170,1767418265492,-1500.0,0.00014368,2]
[400353171,1767418271293,-94.22911731,0.00012982,2]
[400353172,1767418277673,-10000.01,0.00012982,2]
[400353173,1767418277843,-10000.01,0.00012982,2]
[400353174,1767418277999,-10000.01,0.00012982,2]
[400353175,1767418302069,265.19,0.00011664,2]
[400353176,1767418380600,258.44,0.0001173,2]
[400353177,1767418459663,154.34,0.00010169,2]
[400353178,1767418460086,308.68,0.00011093,2]
[400353179,1767418460495,463.02,0.00012018,2]
[400353181,1767418539611,290.28,0.00011419,2]
[400353182,1767418540041,435.42,0.0001237,2]
[400353183,1767418609611,7824.64,0.00012632,2]
[400353184,1767418609639,2175.36,0.00012632,2]
[400353185,1767418617562,271.81,0.00011059,2]
[400353186,1767418617970,407.71,0.0001198,2]
[400353191,1767418680861,151.33,7.992e-05,2]
[400353192,1767418695808,152.34,0.00010473,2]
[400353193,1767418696211,304.69,0.00011425,2]
[400353194,1767418696658,457.03,0.00012377,2]
[400353195,1767418775394,281.42,0.00011072,2]
[400353196,1767418775794,422.13,0.00011995,2]
[400353198,1767418852729,263.51,0.00011248,2]
[400353199,1767418853195,395.27,0.00012185,2]
[400353200,1767418860257,3478.83088464,0.00012632,2]
[400353201,1767418883108,1238.57911536,0.00012632,2]
[400353202,1767418883141,282.59,0.00012632,2]
[400353203,1767418930652,153.82,0.00010141,2]
[400353204,1767418931093,307.64,0.00011063,2]
[400353205,1767418931513,461.46,0.00011984,2]
[400353206,1767419010106,284.15,0.00011097,2]
[400353207,1767419010497,426.22,0.00012022,2]
[400353208,1767419087400,266.06,0.00011091,2]
[400353209,1767419087830,399.09,0.00012015,2]
[400353210,1767419165119,249.13,0.00011096,2]
[400353211,1767419165538,373.7,0.00012021,2]
[400353212,1767419183164,-602.0,0.00012855,2]
[400353213,1767419183197,-240.58645669,0.00012855,2]
[400353214,1767419183232,-498.26,0.00012945,2]
[400353215,1767419183265,-1041.66666667,0.00012976,2]
[400353216,1767419183297,-503.0,0.00012978,2]
[400353217,1767419183327,-300.0,0.00012979,2]
[400353218,1767419183358,-300.0,0.00012979,2]
[400353219,1767419183389,-300.0,0.0001298,2]
[400353220,1767419183422,-300.0,0.0001298,2]
[400353221,1767419183456,-300.0,0.0001298,2]
[400353222,1767419183491,-500.0,0.00012981,2]
[400353223,1767419183957,-500.0,0.00012981,2]
[400353224,1767419183993,-500.0,0.00012981,2]
[400353225,1767419184028,-500.0,0.00012981,2]
[400353226,1767419184064,-500.0,0.00012981,2]
[400353227,1767419184099,-500.0,0.00012981,2]
[400353228,1767419184136,-500.0,0.00012981,2]
[400353229,1767419184170,-500.0,0.00012981,2]
[400353230,1767419184204,-500.0,0.00012981,2]
[400353231,1767419184239,-500.0,0.00012981,2]
[400353232,1767419184273,-500.0,0.00012981,2]
[400353233,1767419184449,-500.0,0.00012981,2]
[400353234,1767419184482,-382.24120825,0.00012981,2]
[400353235,1767419184517,-500.0,0.00012981,2]
[400353236,1767419184552,-500.0,0.00012981,2]
[400353237,1767419184591,-500.0,0.00012981,2]
[400353238,1767419184628,-500.0,0.00012981,2]
[400353239,1767419184666,-500.0,0.00012981,2]
[400353240,1767419184701,-500.0,0.00012981,2]
[400353241,1767419184735,-500.0,0.00012981,2]
[400353242,1767419184770,-500.0,0.00012981,2]
[400353243,1767419188824,-500.0,0.00012981,2]
[400353244,1767419188874,-500.0,0.00012981,2]
[400353245,1767419188914,-500.0,0.00012981,2]
[400353246,1767419188950,-230.05216816,0.00012981,2]
[400353247,1767419188986,-500.0,0.00012981,2]
[400353248,1767419189022,-500.0,0.00012981,2]
[400353249,1767419189058,-500.0,0.00012981,2]
[400353250,1767419189093,-500.0,0.00012981,2]
[400353251,1767419189131,-500.0,0.00012981,2]
[400353252,1767419189167,-500.0,0.00012981,2]
[400353253,1767419189202,-39.90566368,0.00012981,2]
[400353254,1767419189351,-460.09433632,0.00012981,2]